[Event "Titled Tuesday Blitz February 22 Late 2022"]
[White "Buscar, Michael"]
[Black "Papp, Levente"]
[WhiteFideId "2603616"]
[BlackFideId "751243"]
[WhiteElo "2010"]
[BlackElo "2308"]
[Result "0-1"]
[Round "03"]
[TimeControl "180+1"]
[Date "2022.02.23"]
[WhiteClock "0:00:28"]
[BlackClock "0:00:54"]

1. c4 {[%clk 0:03:00]}  e6 {[%clk 0:02:59]} 2. d4 {[%clk 0:02:58]}  Nf6 {[%clk 0:02:57]} 3. g3 {[%clk 0:02:57]}  Bb4+ {[%clk 0:02:54]} 4. Bd2 {[%clk 0:02:57]}  Qe7 {[%clk 0:02:53]} 5. Nc3 {[%clk 0:02:55]}  O-O {[%clk 0:02:52]} 6. Bg2 {[%clk 0:02:56]}  d6 {[%clk 0:02:49]} 7. a3 {[%clk 0:02:56]}  Bxc3 {[%clk 0:02:48]} 8. Bxc3 {[%clk 0:02:56]}  e5 {[%clk 0:02:47]} 9. dxe5 {[%clk 0:02:48]}  dxe5 {[%clk 0:02:46]} 10. Qc2 {[%clk 0:02:49]}  Nc6 {[%clk 0:02:29]} 11. O-O-O {[%clk 0:02:45]}  Be6 {[%clk 0:02:25]} 12. Bxc6 {[%clk 0:02:36]}  bxc6 {[%clk 0:02:25]} 13. Bxe5 {[%clk 0:02:36]}  Ng4 {[%clk 0:02:21]} 14. Bd4 {[%clk 0:02:23]}  c5 {[%clk 0:02:01]} 15. h3 {[%clk 0:02:22]}  cxd4 {[%clk 0:01:18]} 16. hxg4 {[%clk 0:02:23]}  h6 {[%clk 0:01:18]} 17. Rxd4 {[%clk 0:02:17]}  Rfd8 {[%clk 0:01:18]} 18. Qe4 {[%clk 0:02:04]}  Rxd4 {[%clk 0:01:15]} 19. Qxd4 {[%clk 0:01:57]}  Rd8 {[%clk 0:01:14]} 20. Qe4 {[%clk 0:01:53]}  Qc5 {[%clk 0:01:08]} 21. Nf3 {[%clk 0:01:14]}  Bxc4 {[%clk 0:01:05]} 22. Kb1 {[%clk 0:01:14]}  Bd5 {[%clk 0:00:58]} 23. Qf5 {[%clk 0:00:57]}  Qc4 {[%clk 0:00:58]} 24. Nd2 {[%clk 0:00:32]}  Qa2+ {[%clk 0:00:57]} 25. Kc2 {[%clk 0:00:32]}  Bxh1 {[%clk 0:00:57]} 26. f3 {[%clk 0:00:28]}  Qd5 {[%clk 0:00:54]} 0-1


[Site "https://www.chess.com"]

[Event "Titled Tuesday Blitz February 22 Late 2022"]
[White "Carlsson, Ludvig"]
[Black "Savchenko, Boris"]
[WhiteFideId "1727010"]
[BlackFideId "4147332"]
[WhiteElo "2178"]
[BlackElo "2512"]
[Result "1-0"]
[Round "03"]
[TimeControl "180+1"]
[Date "2022.02.22"]
[WhiteClock "0:00:49"]
[BlackClock "0:00:53"]

1. Nf3 {[%clk 0:03:00]}  g6 {[%clk 0:02:58]} 2. e4 {[%clk 0:03:00]}  Bg7 {[%clk 0:02:59]} 3. d4 {[%clk 0:03:00]}  c5 {[%clk 0:02:59]} 4. c3 {[%clk 0:02:58]}  cxd4 {[%clk 0:02:59]} 5. cxd4 {[%clk 0:02:59]}  d5 {[%clk 0:02:59]} 6. e5 {[%clk 0:02:59]}  Bg4 {[%clk 0:02:59]} 7. Bb5+ {[%clk 0:02:58]}  Nc6 {[%clk 0:02:58]} 8. Bxc6+ {[%clk 0:02:58]}  bxc6 {[%clk 0:02:58]} 9. Nbd2 {[%clk 0:02:58]}  e6 {[%clk 0:02:58]} 10. h3 {[%clk 0:02:57]}  Bxf3 {[%clk 0:02:57]} 11. Nxf3 {[%clk 0:02:58]}  c5 {[%clk 0:02:58]} 12. dxc5 {[%clk 0:02:51]}  Ne7 {[%clk 0:02:56]} 13. O-O {[%clk 0:02:47]}  O-O {[%clk 0:02:54]} 14. Bg5 {[%clk 0:02:45]}  h6 {[%clk 0:02:53]} 15. Bxe7 {[%clk 0:02:42]}  Qxe7 {[%clk 0:02:53]} 16. b4 {[%clk 0:02:42]}  a5 {[%clk 0:02:53]} 17. a3 {[%clk 0:02:42]}  Rfb8 {[%clk 0:02:53]} 18. Qd2 {[%clk 0:02:39]}  Qc7 {[%clk 0:02:42]} 19. Qc3 {[%clk 0:02:30]}  g5 {[%clk 0:02:40]} 20. Rfe1 {[%clk 0:02:26]}  Ra6 {[%clk 0:02:30]} 21. Rab1 {[%clk 0:02:25]}  axb4 {[%clk 0:02:22]} 22. axb4 {[%clk 0:02:26]}  Ra4 {[%clk 0:02:23]} 23. Rb3 {[%clk 0:02:06]}  Qa7 {[%clk 0:02:00]} 24. Reb1 {[%clk 0:02:05]}  Ra2 {[%clk 0:01:58]} 25. b5 {[%clk 0:01:57]}  Qa4 {[%clk 0:01:50]} 26. c6 {[%clk 0:01:45]}  Qa8 {[%clk 0:01:25]} 27. b6 {[%clk 0:01:40]}  d4 {[%clk 0:01:21]} 28. Nxd4 {[%clk 0:01:34]}  Bxe5 {[%clk 0:01:21]} 29. c7 {[%clk 0:01:35]}  Rf8 {[%clk 0:01:00]} 30. b7 {[%clk 0:01:33]}  Qa4 {[%clk 0:00:59]} 31. c8=Q {[%clk 0:01:17]}  Bxd4 {[%clk 0:00:59]} 32. Qxf8+ {[%clk 0:01:16]}  Kxf8 {[%clk 0:00:59]} 33. b8=Q+ {[%clk 0:01:16]}  Kg7 {[%clk 0:01:00]} 34. Qf3 {[%clk 0:00:56]}  Rxf2 {[%clk 0:00:54]} 35. Qxf2 {[%clk 0:00:53]}  Bxf2+ {[%clk 0:00:54]} 36. Kxf2 {[%clk 0:00:53]}  Qd4+ {[%clk 0:00:54]} 37. Re3 {[%clk 0:00:50]}  Qd2+ {[%clk 0:00:53]} 38. Re2 {[%clk 0:00:50]}  Qf4+ {[%clk 0:00:53]} 39. Qxf4 {[%clk 0:00:49]}  gxf4 {[%clk 0:00:53]} 40. Rb5 {[%clk 0:00:49]} 1-0


[Site "https://www.chess.com"]

[Event "Titled Tuesday Blitz February 22 Late 2022"]
[White "Chigaev, Maksim"]
[Black "Bachmann, Axel"]
[WhiteFideId "4108116"]
[BlackFideId "3700488"]
[WhiteElo "2502"]
[BlackElo "2642"]
[Result "0-1"]
[Round "03"]
[TimeControl "180+1"]
[Date "2022.02.22"]
[WhiteClock "0:00:13"]
[BlackClock "0:00:47"]

1. e4 {[%clk 0:03:00]}  e5 {[%clk 0:02:58]} 2. Nf3 {[%clk 0:03:01]}  Nf6 {[%clk 0:02:57]} 3. Nc3 {[%clk 0:02:59]}  d6 {[%clk 0:02:56]} 4. d4 {[%clk 0:02:59]}  Nbd7 {[%clk 0:02:56]} 5. Rg1 {[%clk 0:02:58]}  c6 {[%clk 0:02:53]} 6. g4 {[%clk 0:02:58]}  g6 {[%clk 0:02:53]} 7. g5 {[%clk 0:02:51]}  Nh5 {[%clk 0:02:53]} 8. Be3 {[%clk 0:02:48]}  b5 {[%clk 0:02:42]} 9. Qd2 {[%clk 0:02:45]}  Qa5 {[%clk 0:02:38]} 10. Bd3 {[%clk 0:02:36]}  Bg7 {[%clk 0:02:34]} 11. Ne2 {[%clk 0:02:14]}  Qc7 {[%clk 0:02:16]} 12. O-O-O {[%clk 0:02:12]}  a6 {[%clk 0:02:16]} 13. Ng3 {[%clk 0:01:46]}  Nf4 {[%clk 0:02:12]} 14. Bxf4 {[%clk 0:01:45]}  exf4 {[%clk 0:02:13]} 15. Qxf4 {[%clk 0:01:45]}  c5 {[%clk 0:02:12]} 16. Nf5 {[%clk 0:01:39]}  gxf5 {[%clk 0:02:05]} 17. exf5 {[%clk 0:01:40]}  c4 {[%clk 0:01:53]} 18. Be4 {[%clk 0:01:33]}  Rb8 {[%clk 0:01:39]} 19. f6 {[%clk 0:01:27]}  Bf8 {[%clk 0:01:38]} 20. Rge1 {[%clk 0:01:27]}  Kd8 {[%clk 0:01:38]} 21. Bxh7 {[%clk 0:00:54]}  c3 {[%clk 0:01:28]} 22. Kb1 {[%clk 0:00:46]}  Rxh7 {[%clk 0:01:19]} 23. Qe4 {[%clk 0:00:46]}  Qa5 {[%clk 0:01:19]} 24. Re3 {[%clk 0:00:30]}  Rh3 {[%clk 0:01:06]} 25. Qe8+ {[%clk 0:00:29]}  Kc7 {[%clk 0:01:06]} 26. Rxc3+ {[%clk 0:00:24]}  Kb7 {[%clk 0:01:00]} 27. Rxc8 {[%clk 0:00:24]}  Rxc8 {[%clk 0:01:01]} 28. Qxd7+ {[%clk 0:00:24]}  Qc7 {[%clk 0:01:01]} 29. Qxc7+ {[%clk 0:00:20]}  Kxc7 {[%clk 0:01:00]} 30. Rd3 {[%clk 0:00:19]}  d5 {[%clk 0:00:55]} 31. a4 {[%clk 0:00:12]}  Bd6 {[%clk 0:00:52]} 32. axb5 {[%clk 0:00:12]}  axb5 {[%clk 0:00:53]} 33. Ne5 {[%clk 0:00:13]}  Rxd3 {[%clk 0:00:52]} 34. cxd3 {[%clk 0:00:11]}  Bxe5 {[%clk 0:00:51]} 35. dxe5 {[%clk 0:00:12]}  Kd7 {[%clk 0:00:51]} 36. f4 {[%clk 0:00:12]}  Ke6 {[%clk 0:00:50]} 37. h4 {[%clk 0:00:13]}  Rh8 {[%clk 0:00:50]} 38. h5 {[%clk 0:00:10]}  Rxh5 {[%clk 0:00:49]} 39. f5+ {[%clk 0:00:10]}  Kxf5 {[%clk 0:00:48]} 40. e6 {[%clk 0:00:11]}  Kxe6 {[%clk 0:00:48]} 41. Ka2 {[%clk 0:00:12]}  Rxg5 {[%clk 0:00:47]} 42. Kb3 {[%clk 0:00:13]}  Rg4 {[%clk 0:00:47]} 43. d4 {[%clk 0:00:13]} 0-1


[Site "https://www.chess.com"]

[Event "Titled Tuesday Blitz February 22 Late 2022"]
[White "Clawitter, Craig"]
[Black "Przybylski, Wojciech"]
[WhiteFideId "2023105"]
[BlackFideId "1117599"]
[WhiteElo "2204"]
[BlackElo "2133"]
[Result "1-0"]
[Round "03"]
[TimeControl "180+1"]
[Date "2022.02.23"]
[WhiteClock "0:00:07"]
[BlackClock "0:00:09"]

1. e4 {[%clk 0:03:00]}  e5 {[%clk 0:02:58]} 2. Nf3 {[%clk 0:03:01]}  Nf6 {[%clk 0:02:57]} 3. Nxe5 {[%clk 0:03:00]}  d6 {[%clk 0:02:55]} 4. Nf3 {[%clk 0:03:00]}  Nxe4 {[%clk 0:02:55]} 5. Nc3 {[%clk 0:03:01]}  Nxc3 {[%clk 0:02:55]} 6. dxc3 {[%clk 0:03:02]}  Be7 {[%clk 0:02:55]} 7. Be3 {[%clk 0:03:02]}  O-O {[%clk 0:02:54]} 8. Qd2 {[%clk 0:03:03]}  Nc6 {[%clk 0:02:53]} 9. O-O-O {[%clk 0:03:03]}  Bf6 {[%clk 0:02:53]} 10. Kb1 {[%clk 0:03:03]}  Be6 {[%clk 0:02:39]} 11. h4 {[%clk 0:03:00]}  Ne5 {[%clk 0:02:35]} 12. Ng5 {[%clk 0:02:57]}  Bf5 {[%clk 0:02:08]} 13. Be2 {[%clk 0:02:34]}  h6 {[%clk 0:01:36]} 14. Nf3 {[%clk 0:02:25]}  Ng4 {[%clk 0:01:34]} 15. Bd4 {[%clk 0:02:20]}  Re8 {[%clk 0:01:19]} 16. Qf4 {[%clk 0:01:41]}  Bxd4 {[%clk 0:00:39]} 17. Nxd4 {[%clk 0:01:36]}  Rxe2 {[%clk 0:00:21]} 18. Nxe2 {[%clk 0:01:19]}  Bd7 {[%clk 0:00:20]} 19. f3 {[%clk 0:01:08]}  Nf2 {[%clk 0:00:18]} 20. Nd4 {[%clk 0:01:04]}  Nxd1 {[%clk 0:00:16]} 21. Rxd1 {[%clk 0:01:02]}  Qf6 {[%clk 0:00:15]} 22. Qxf6 {[%clk 0:00:57]}  gxf6 {[%clk 0:00:16]} 23. Re1 {[%clk 0:00:56]}  Kf8 {[%clk 0:00:15]} 24. Kc1 {[%clk 0:00:55]}  c5 {[%clk 0:00:14]} 25. Ne2 {[%clk 0:00:47]}  Re8 {[%clk 0:00:12]} 26. Kd2 {[%clk 0:00:47]}  Bc6 {[%clk 0:00:11]} 27. Ng3 {[%clk 0:00:43]}  Re5 {[%clk 0:00:10]} 28. Rxe5 {[%clk 0:00:36]}  dxe5 {[%clk 0:00:07]} 29. h5 {[%clk 0:00:22]}  Kg7 {[%clk 0:00:05]} 30. Nf5+ {[%clk 0:00:22]}  Kh7 {[%clk 0:00:05]} 31. c4 {[%clk 0:00:17]}  Bd7 {[%clk 0:00:05]} 32. Nd6 {[%clk 0:00:16]}  Be6 {[%clk 0:00:05]} 33. Nxb7 {[%clk 0:00:16]}  Bxc4 {[%clk 0:00:05]} 34. Nxc5 {[%clk 0:00:16]}  f5 {[%clk 0:00:04]} 35. b3 {[%clk 0:00:15]}  Bd5 {[%clk 0:00:04]} 36. c4 {[%clk 0:00:15]}  Bc6 {[%clk 0:00:04]} 37. b4 {[%clk 0:00:15]}  f4 {[%clk 0:00:03]} 38. b5 {[%clk 0:00:15]}  Ba8 {[%clk 0:00:03]} 39. Na6 {[%clk 0:00:15]}  f5 {[%clk 0:00:03]} 40. Nc7 {[%clk 0:00:14]}  Bb7 {[%clk 0:00:03]} 41. c5 {[%clk 0:00:15]}  e4 {[%clk 0:00:04]} 42. c6 {[%clk 0:00:11]}  Bc8 {[%clk 0:00:04]} 43. a4 {[%clk 0:00:09]}  Kg7 {[%clk 0:00:05]} 44. a5 {[%clk 0:00:10]}  Kf6 {[%clk 0:00:05]} 45. b6 {[%clk 0:00:10]}  axb6 {[%clk 0:00:05]} 46. axb6 {[%clk 0:00:11]}  Ke7 {[%clk 0:00:05]} 47. b7 {[%clk 0:00:11]}  Bxb7 {[%clk 0:00:05]} 48. cxb7 {[%clk 0:00:11]}  e3+ {[%clk 0:00:06]} 49. Ke2 {[%clk 0:00:11]}  Kf6 {[%clk 0:00:07]} 50. b8=Q {[%clk 0:00:11]}  Kg5 {[%clk 0:00:07]} 51. Nd5 {[%clk 0:00:10]}  Kxh5 {[%clk 0:00:06]} 52. Qe8+ {[%clk 0:00:07]}  Kh4 {[%clk 0:00:07]} 53. Nf6 {[%clk 0:00:05]}  Kg3 {[%clk 0:00:06]} 54. Qg6+ {[%clk 0:00:04]}  Kh2 {[%clk 0:00:06]} 55. Qxh6+ {[%clk 0:00:04]}  Kg1 {[%clk 0:00:07]} 56. Qxf4 {[%clk 0:00:04]}  Kh1 {[%clk 0:00:06]} 57. Qxe3 {[%clk 0:00:04]}  Kh2 {[%clk 0:00:06]} 58. Qf4+ {[%clk 0:00:04]}  Kg1 {[%clk 0:00:06]} 59. Qxf5 {[%clk 0:00:03]}  Kh2 {[%clk 0:00:06]} 60. g4 {[%clk 0:00:04]}  Kg3 {[%clk 0:00:07]} 61. g5 {[%clk 0:00:05]}  Kh4 {[%clk 0:00:07]} 62. g6 {[%clk 0:00:06]}  Kg3 {[%clk 0:00:07]} 63. g7 {[%clk 0:00:07]}  Kh4 {[%clk 0:00:08]} 64. Nd7 {[%clk 0:00:07]}  Kg3 {[%clk 0:00:08]} 65. g8=Q+ {[%clk 0:00:07]}  Kh2 {[%clk 0:00:09]} 66. Qfh7# {[%clk 0:00:07]} 1-0


[Site "https://www.chess.com"]

[Event "Titled Tuesday Blitz February 22 Late 2022"]
[White "Cunha, Lucas Aguiar"]
[Black "Kohler, Aran"]
[WhiteFideId "2125404"]
[BlackFideId "1002856"]
[WhiteElo "2361"]
[BlackElo "2258"]
[Result "1-0"]
[Round "03"]
[TimeControl "180+1"]
[Date "2022.02.23"]
[WhiteClock "0:00:35"]
[BlackClock "0:00:09"]

1. e4 {[%clk 0:02:59]}  c5 {[%clk 0:02:59]} 2. Nf3 {[%clk 0:02:59]}  d6 {[%clk 0:02:59]} 3. d4 {[%clk 0:02:59]}  cxd4 {[%clk 0:02:59]} 4. Qxd4 {[%clk 0:03:00]}  Nc6 {[%clk 0:02:57]} 5. Bb5 {[%clk 0:03:00]}  Bd7 {[%clk 0:02:58]} 6. Bxc6 {[%clk 0:03:00]}  bxc6 {[%clk 0:02:58]} 7. O-O {[%clk 0:03:00]}  e5 {[%clk 0:02:58]} 8. Qd3 {[%clk 0:03:00]}  Be7 {[%clk 0:02:57]} 9. b3 {[%clk 0:02:58]}  Nf6 {[%clk 0:02:54]} 10. Ba3 {[%clk 0:02:58]}  c5 {[%clk 0:02:48]} 11. Nbd2 {[%clk 0:02:56]}  O-O {[%clk 0:02:44]} 12. Rfe1 {[%clk 0:02:54]}  Qa5 {[%clk 0:02:38]} 13. Nc4 {[%clk 0:02:53]}  Qc7 {[%clk 0:02:36]} 14. Ne3 {[%clk 0:02:49]}  Rab8 {[%clk 0:02:32]} 15. Nd2 {[%clk 0:02:47]}  Bc6 {[%clk 0:02:30]} 16. Nf5 {[%clk 0:02:43]}  g6 {[%clk 0:02:24]} 17. Nxe7+ {[%clk 0:02:40]}  Qxe7 {[%clk 0:02:24]} 18. Rad1 {[%clk 0:02:41]}  Rfd8 {[%clk 0:02:23]} 19. h3 {[%clk 0:02:34]}  d5 {[%clk 0:02:13]} 20. exd5 {[%clk 0:02:24]}  Rxd5 {[%clk 0:02:13]} 21. Qe2 {[%clk 0:02:17]}  Rbd8 {[%clk 0:02:12]} 22. Nc4 {[%clk 0:02:10]}  Rxd1 {[%clk 0:02:04]} 23. Rxd1 {[%clk 0:02:11]}  Rxd1+ {[%clk 0:02:04]} 24. Qxd1 {[%clk 0:02:12]}  Nd5 {[%clk 0:01:57]} 25. Qe1 {[%clk 0:02:05]}  f6 {[%clk 0:01:53]} 26. Qa5 {[%clk 0:02:05]}  Nf4 {[%clk 0:01:49]} 27. f3 {[%clk 0:02:00]}  Qd7 {[%clk 0:01:47]} 28. Qxc5 {[%clk 0:01:58]}  Ne6 {[%clk 0:01:34]} 29. Qd6 {[%clk 0:01:55]}  Qe8 {[%clk 0:01:28]} 30. Bb2 {[%clk 0:01:44]}  Kg7 {[%clk 0:01:25]} 31. Ne3 {[%clk 0:01:10]}  h5 {[%clk 0:01:11]} 32. c4 {[%clk 0:01:02]}  Nf4 {[%clk 0:01:09]} 33. b4 {[%clk 0:01:00]}  Bd7 {[%clk 0:00:51]} 34. b5 {[%clk 0:00:56]}  Be6 {[%clk 0:00:45]} 35. Bxe5 {[%clk 0:00:54]}  Ne2+ {[%clk 0:00:36]} 36. Kf2 {[%clk 0:00:54]}  Nc1 {[%clk 0:00:33]} 37. Bb2 {[%clk 0:00:51]}  Nxa2 {[%clk 0:00:32]} 38. Qa3 {[%clk 0:00:46]}  Qd7 {[%clk 0:00:27]} 39. Ke1 {[%clk 0:00:38]}  Qe7 {[%clk 0:00:12]} 40. Qxe7+ {[%clk 0:00:36]}  Kh8 {[%clk 0:00:09]} 41. Bxf6+ {[%clk 0:00:35]}  Kg8 {[%clk 0:00:09]} 42. Qg7# {[%clk 0:00:35]} 1-0


[Site "https://www.chess.com"]

[Event "Titled Tuesday Blitz February 22 Late 2022"]
[White "Deac, Bogdan-Daniel"]
[Black "Kozak, Adam"]
[WhiteFideId "1226380"]
[BlackFideId "753246"]
[WhiteElo "2646"]
[BlackElo "2459"]
[Result "1-0"]
[Round "03"]
[TimeControl "180+1"]
[Date "2022.02.22"]
[WhiteClock "0:00:18"]
[BlackClock "0:00:42"]

1. e4 {[%clk 0:03:00]}  c5 {[%clk 0:02:56]} 2. Nf3 {[%clk 0:03:01]}  a6 {[%clk 0:02:56]} 3. c4 {[%clk 0:02:58]}  Nc6 {[%clk 0:02:54]} 4. d4 {[%clk 0:02:58]}  cxd4 {[%clk 0:02:53]} 5. Nxd4 {[%clk 0:02:59]}  g6 {[%clk 0:02:53]} 6. Nc3 {[%clk 0:02:58]}  Bg7 {[%clk 0:02:53]} 7. Be3 {[%clk 0:02:57]}  Nf6 {[%clk 0:02:51]} 8. f3 {[%clk 0:02:56]}  d6 {[%clk 0:02:51]} 9. Qd2 {[%clk 0:02:56]}  O-O {[%clk 0:02:50]} 10. Be2 {[%clk 0:02:56]}  Bd7 {[%clk 0:02:50]} 11. O-O {[%clk 0:02:55]}  Rc8 {[%clk 0:02:48]} 12. Rfd1 {[%clk 0:02:42]}  Ne8 {[%clk 0:02:47]} 13. Nd5 {[%clk 0:02:29]}  Nc7 {[%clk 0:02:43]} 14. Nb6 {[%clk 0:02:03]}  Rb8 {[%clk 0:02:42]} 15. Rac1 {[%clk 0:01:53]}  Ne6 {[%clk 0:02:40]} 16. Nb3 {[%clk 0:01:48]}  Be8 {[%clk 0:02:00]} 17. f4 {[%clk 0:01:45]}  Nc5 {[%clk 0:01:52]} 18. Nxc5 {[%clk 0:01:33]}  Qxb6 {[%clk 0:01:45]} 19. Nd7 {[%clk 0:01:26]}  Qxb2 {[%clk 0:01:43]} 20. Nxb8 {[%clk 0:01:20]}  Qxd2 {[%clk 0:01:42]} 21. Rxd2 {[%clk 0:01:20]}  Nxb8 {[%clk 0:01:42]} 22. c5 {[%clk 0:01:20]}  Bc6 {[%clk 0:01:25]} 23. cxd6 {[%clk 0:01:19]}  exd6 {[%clk 0:01:25]} 24. Bf3 {[%clk 0:01:19]}  Rd8 {[%clk 0:01:14]} 25. Bb6 {[%clk 0:01:07]}  Rd7 {[%clk 0:01:08]} 26. Bg4 {[%clk 0:00:42]}  Re7 {[%clk 0:00:54]} 27. Rxd6 {[%clk 0:00:38]}  h5 {[%clk 0:00:54]} 28. Bf3 {[%clk 0:00:27]}  Nd7 {[%clk 0:00:53]} 29. Rcxc6 {[%clk 0:00:17]}  bxc6 {[%clk 0:00:47]} 30. Bd8 {[%clk 0:00:17]}  Re6 {[%clk 0:00:42]} 31. Rxd7 {[%clk 0:00:18]}  c5 {[%clk 0:00:42]} 32. e5 {[%clk 0:00:18]}  g5 {[%clk 0:00:42]} 33. Bd5 {[%clk 0:00:18]} 1-0


[Site "https://www.chess.com"]

[Event "Titled Tuesday Blitz February 22 Late 2022"]
[White "Devaev, Alexander"]
[Black "Urazayev, Arystanbek"]
[WhiteFideId "4169395"]
[BlackFideId "13709810"]
[WhiteElo "2185"]
[BlackElo "2321"]
[Result "0-1"]
[Round "03"]
[TimeControl "180+1"]
[Date "2022.02.23"]
[WhiteClock "0:00:11"]
[BlackClock "0:01:57"]

1. Nf3 {[%clk 0:03:00]}  d6 {[%clk 0:02:59]} 2. d4 {[%clk 0:03:00]}  g6 {[%clk 0:02:59]} 3. c4 {[%clk 0:03:01]}  Nf6 {[%clk 0:03:00]} 4. Nc3 {[%clk 0:03:02]}  Bg7 {[%clk 0:03:00]} 5. e4 {[%clk 0:03:02]}  O-O {[%clk 0:03:01]} 6. h3 {[%clk 0:03:03]}  e5 {[%clk 0:03:02]} 7. d5 {[%clk 0:03:03]}  Na6 {[%clk 0:03:01]} 8. Bg5 {[%clk 0:03:04]}  Nc5 {[%clk 0:03:02]} 9. Nd2 {[%clk 0:03:03]}  a5 {[%clk 0:03:01]} 10. Be2 {[%clk 0:03:02]}  c6 {[%clk 0:03:01]} 11. b3 {[%clk 0:02:49]}  Qb6 {[%clk 0:02:58]} 12. a3 {[%clk 0:02:37]}  Bd7 {[%clk 0:02:48]} 13. Rb1 {[%clk 0:02:35]}  Na6 {[%clk 0:02:27]} 14. O-O {[%clk 0:02:12]}  h6 {[%clk 0:02:23]} 15. Be3 {[%clk 0:02:10]}  Qc7 {[%clk 0:02:18]} 16. Qc2 {[%clk 0:01:35]}  Nh7 {[%clk 0:02:17]} 17. Rfc1 {[%clk 0:01:26]}  f5 {[%clk 0:02:17]} 18. f3 {[%clk 0:01:27]}  f4 {[%clk 0:02:12]} 19. Bf2 {[%clk 0:01:27]}  g5 {[%clk 0:02:13]} 20. b4 {[%clk 0:01:18]}  axb4 {[%clk 0:02:13]} 21. axb4 {[%clk 0:01:19]}  c5 {[%clk 0:02:13]} 22. bxc5 {[%clk 0:01:17]}  Nxc5 {[%clk 0:02:13]} 23. Nb3 {[%clk 0:01:17]}  b6 {[%clk 0:02:13]} 24. Nxc5 {[%clk 0:01:13]}  bxc5 {[%clk 0:02:14]} 25. Rb3 {[%clk 0:01:06]}  h5 {[%clk 0:02:10]} 26. Rcb1 {[%clk 0:01:05]}  Nf6 {[%clk 0:02:10]} 27. Rb7 {[%clk 0:00:54]}  Qd8 {[%clk 0:02:10]} 28. Qd1 {[%clk 0:00:55]}  Qc8 {[%clk 0:02:03]} 29. R7b6 {[%clk 0:00:52]}  g4 {[%clk 0:01:59]} 30. hxg4 {[%clk 0:00:52]}  hxg4 {[%clk 0:02:00]} 31. Rxd6 {[%clk 0:00:37]}  g3 {[%clk 0:01:59]} 32. Be1 {[%clk 0:00:38]}  Qe8 {[%clk 0:01:58]} 33. Kf1 {[%clk 0:00:11]}  Qh5 {[%clk 0:01:57]} 0-1


[Site "https://www.chess.com"]

[Event "Titled Tuesday Blitz February 22 Late 2022"]
[White "Estrada Nieto, Julian"]
[Black "Goryachkina, Aleksandra"]
[WhiteFideId "5101018"]
[BlackFideId "4147103"]
[WhiteElo "2246"]
[BlackElo "2426"]
[Result "0-1"]
[Round "03"]
[TimeControl "180+1"]
[Date "2022.02.23"]
[WhiteClock "0:00:02"]
[BlackClock "0:00:06"]

1. e4 {[%clk 0:03:00]}  c5 {[%clk 0:02:58]} 2. Nf3 {[%clk 0:03:01]}  e6 {[%clk 0:02:58]} 3. c3 {[%clk 0:03:01]}  d5 {[%clk 0:02:55]} 4. exd5 {[%clk 0:03:01]}  exd5 {[%clk 0:02:56]} 5. d4 {[%clk 0:03:01]}  Nc6 {[%clk 0:02:56]} 6. Bb5 {[%clk 0:03:02]}  Bd6 {[%clk 0:02:54]} 7. dxc5 {[%clk 0:03:01]}  Bxc5 {[%clk 0:02:54]} 8. O-O {[%clk 0:03:01]}  Ne7 {[%clk 0:02:51]} 9. Nbd2 {[%clk 0:03:01]}  O-O {[%clk 0:02:50]} 10. Nb3 {[%clk 0:03:02]}  Bb6 {[%clk 0:02:50]} 11. Re1 {[%clk 0:03:01]}  Bg4 {[%clk 0:02:45]} 12. Be3 {[%clk 0:02:56]}  a6 {[%clk 0:02:29]} 13. Bd3 {[%clk 0:02:54]}  h6 {[%clk 0:02:18]} 14. Bxb6 {[%clk 0:02:34]}  Qxb6 {[%clk 0:02:18]} 15. Be2 {[%clk 0:02:33]}  Rad8 {[%clk 0:01:56]} 16. Nfd4 {[%clk 0:02:32]}  Bxe2 {[%clk 0:01:53]} 17. Rxe2 {[%clk 0:02:32]}  Ng6 {[%clk 0:01:49]} 18. Nxc6 {[%clk 0:02:20]}  bxc6 {[%clk 0:01:47]} 19. Qd4 {[%clk 0:02:19]}  Qb8 {[%clk 0:01:41]} 20. g3 {[%clk 0:02:14]}  Rfe8 {[%clk 0:01:22]} 21. Rae1 {[%clk 0:02:14]}  Rxe2 {[%clk 0:01:15]} 22. Rxe2 {[%clk 0:02:14]}  Re8 {[%clk 0:01:13]} 23. Rxe8+ {[%clk 0:01:47]}  Qxe8 {[%clk 0:01:13]} 24. Kf1 {[%clk 0:01:39]}  Qe6 {[%clk 0:01:03]} 25. Nc5 {[%clk 0:01:32]}  Qh3+ {[%clk 0:00:58]} 26. Kg1 {[%clk 0:01:32]}  f6 {[%clk 0:00:51]} 27. f4 {[%clk 0:01:20]}  h5 {[%clk 0:00:43]} 28. Qd3 {[%clk 0:01:04]}  Ne7 {[%clk 0:00:25]} 29. Qe2 {[%clk 0:00:49]}  Kf7 {[%clk 0:00:24]} 30. Nxa6 {[%clk 0:00:39]}  h4 {[%clk 0:00:23]} 31. Qh5+ {[%clk 0:00:34]}  Kf8 {[%clk 0:00:13]} 32. Qh8+ {[%clk 0:00:30]}  Kf7 {[%clk 0:00:13]} 33. Qxh4 {[%clk 0:00:30]}  Qe6 {[%clk 0:00:13]} 34. Qh5+ {[%clk 0:00:28]}  Kf8 {[%clk 0:00:10]} 35. Qd1 {[%clk 0:00:22]}  Qe3+ {[%clk 0:00:08]} 36. Kg2 {[%clk 0:00:22]}  Nf5 {[%clk 0:00:05]} 37. Nc7 {[%clk 0:00:19]}  Qe4+ {[%clk 0:00:04]} 38. Qf3 {[%clk 0:00:18]}  Qc2+ {[%clk 0:00:02]} 39. Kh3 {[%clk 0:00:17]}  Qxb2 {[%clk 0:00:02]} 40. Qg4 {[%clk 0:00:16]}  Qc2 {[%clk 0:00:01]} 41. Ne6+ {[%clk 0:00:15]}  Kf7 {[%clk 0:00:01]} 42. Nd4 {[%clk 0:00:16]}  Nxd4 {[%clk 0:00:01]} 43. cxd4 {[%clk 0:00:16]}  Qd2 {[%clk 0:00:01]} 44. Qh5+ {[%clk 0:00:15]}  Ke7 {[%clk 0:00:01]} 45. Qg6 {[%clk 0:00:12]}  Kf8 {[%clk 0:00:01]} 46. Qf5 {[%clk 0:00:12]}  Qxd4 {[%clk 0:00:01]} 47. Qc8+ {[%clk 0:00:11]}  Kf7 {[%clk 0:00:02]} 48. Qxc6 {[%clk 0:00:12]}  Qe4 {[%clk 0:00:02]} 49. Qd7+ {[%clk 0:00:12]}  Kf8 {[%clk 0:00:02]} 50. Qd8+ {[%clk 0:00:12]}  Kf7 {[%clk 0:00:02]} 51. Qd7+ {[%clk 0:00:12]}  Kf8 {[%clk 0:00:02]} 52. Qc8+ {[%clk 0:00:11]}  Kf7 {[%clk 0:00:02]} 53. Qc7+ {[%clk 0:00:11]}  Kg6 {[%clk 0:00:02]} 54. Qc8 {[%clk 0:00:11]}  d4 {[%clk 0:00:02]} 55. Qg4+ {[%clk 0:00:10]}  Kf7 {[%clk 0:00:02]} 56. Qd7+ {[%clk 0:00:10]}  Kg8 {[%clk 0:00:02]} 57. Qd8+ {[%clk 0:00:10]}  Kh7 {[%clk 0:00:02]} 58. Qd7 {[%clk 0:00:09]}  d3 {[%clk 0:00:02]} 59. Kg4 {[%clk 0:00:09]}  Qe2+ {[%clk 0:00:02]} 60. Kf5 {[%clk 0:00:06]}  d2 {[%clk 0:00:01]} 61. g4 {[%clk 0:00:03]}  d1=Q {[%clk 0:00:02]} 62. Qxd1 {[%clk 0:00:02]}  Qxd1 {[%clk 0:00:02]} 63. g5 {[%clk 0:00:03]}  Qc2+ {[%clk 0:00:02]} 64. Kg4 {[%clk 0:00:03]}  Qxa2 {[%clk 0:00:03]} 65. Kh5 {[%clk 0:00:03]}  g6+ {[%clk 0:00:03]} 66. Kg4 {[%clk 0:00:02]}  Qg2+ {[%clk 0:00:04]} 67. Kh4 {[%clk 0:00:02]}  Qxh2+ {[%clk 0:00:04]} 68. Kg4 {[%clk 0:00:02]}  f5+ {[%clk 0:00:05]} 69. Kf3 {[%clk 0:00:02]}  Qh3+ {[%clk 0:00:05]} 70. Ke2 {[%clk 0:00:02]}  Qg4+ {[%clk 0:00:06]} 71. Ke3 {[%clk 0:00:02]}  Qg3+ {[%clk 0:00:06]} 0-1


[Site "https://www.chess.com"]